fUST/lending_fUST_20251010
["ID","MTS","AMOUNT","RATE_DAILY","PERIOD"]
[390428824,1760043049266,-2566.51,0.00016712,2]
[390428826,1760043049275,-493.08,0.00016712,2]
[390428828,1760043049286,-500.0,0.00016712,2]
[390428830,1760043049296,-500.0,0.00016712,2]
[390428832,1760043049306,-500.0,0.00016712,2]
[390428834,1760043049317,-581.96,0.00016712,2]
[390428836,1760043049327,-599.44,0.00016712,2]
[390428839,1760043049337,-500.0,0.00016712,2]
[390428841,1760043049347,-624.84,0.00016712,2]
[390428843,1760043049357,-500.0,0.00016712,2]
[390428845,1760043049367,-492.80565521,0.00016712,2]
[390428847,1760043049378,-601.05,0.00016712,2]
[390428849,1760043049391,-500.0,0.00016712,2]
[390428852,1760043049402,-500.0,0.00016712,2]
[390428854,1760043049416,-500.0,0.00016712,2]
[390428857,1760043049430,-500.0,0.00016712,2]
[390428859,1760043049443,-668.46,0.00016712,2]
[390428862,1760043049456,-500.0,0.00016712,2]
[390428864,1760043049467,-500.0,0.00016712,2]
[390428866,1760043049481,-500.0,0.00016712,2]
[390428868,1760043049495,-607.16,0.00016712,2]
[390428871,1760043049506,-500.0,0.00016712,2]
[390428873,1760043049519,-1181.46,0.00016712,2]
[390428875,1760043049532,-500.0,0.00016712,2]
[390428877,1760043049544,-500.0,0.00016712,2]
[390428880,1760043049558,-500.0,0.00016712,2]
[390428882,1760043049569,-500.0,0.00016712,2]
[390428885,1760043049582,-500.0,0.00016712,2]
[390428887,1760043049595,-500.0,0.00016712,2]
[390428889,1760043049607,-872.08,0.00016712,2]
[390428892,1760043049619,-5078.82,0.00016712,2]
[390428894,1760043049630,-500.0,0.00016712,2]
[390428896,1760043049643,-500.0,0.00016712,2]
[390428898,1760043049654,-738.96,0.00016712,2]
[390428901,1760043049666,-500.0,0.00016712,2]
[390428903,1760043049679,-500.0,0.00016712,2]
[390428905,1760043049692,-187.34,0.00016712,2]
[390428908,1760043049703,-3237.99,0.00016712,2]
[390428910,1760043049714,-528.77,0.00016712,2]
[390428912,1760043049724,-500.0,0.00016712,2]
[390428914,1760043049735,-1164.62,0.00016712,2]
[390428916,1760043049747,-500.0,0.00016712,2]
[390428918,1760043049759,-500.0,0.00016712,2]
[390428921,1760043049771,-500.0,0.00016712,2]
[390428923,1760043049783,-500.0,0.00016712,2]
[390428925,1760043049795,-500.0,0.00016712,2]
[390428928,1760043049807,-1219.76,0.00016712,2]
[390428930,1760043049819,-500.0,0.00016712,2]
[390428932,1760043049831,-500.0,0.00016712,2]
[390428935,1760043049843,-1054.51,0.00016712,2]
[390428937,1760043049856,-242.24,0.00016712,2]
[390428939,1760043049866,-500.0,0.00016712,2]
[390428940,1760043049875,-493.41,0.00016712,2]
[390428941,1760043049885,-500.0,0.00016712,2]
[390428942,1760043049895,-500.0,0.00016712,2]
[390428943,1760043049907,-500.0,0.00016712,2]
[390428944,1760043049919,-500.0,0.00016712,2]
[390428945,1760043049931,-500.0,0.00016712,2]
[390428946,1760043049943,-667.31,0.00016712,2]
[390428947,1760043049953,-500.0,0.00016712,2]
[390428948,1760043049964,-500.0,0.00016712,2]
[390428949,1760043049974,-500.0,0.00016712,2]
[390428950,1760043049984,-500.0,0.00016712,2]
[390428951,1760043049997,-599.77,0.00016712,2]
[390428952,1760043050008,-422.58936269,0.00016712,2]
[390428953,1760043050018,-500.0,0.00016712,2]
[390428954,1760043050028,-500.0,0.00016712,2]
[390428955,1760043050038,-780.03,0.00016712,2]
[390428956,1760043050048,-830.88,0.00016712,2]
[390428957,1760043050060,-500.0,0.00016712,2]
[390428958,1760043050080,-494.23,0.00016712,2]
[390428959,1760043050091,-500.0,0.00016712,2]
[390428960,1760043050103,-829.78,0.00016712,2]
[390428961,1760043050114,-500.0,0.00016712,2]
[390428962,1760043050124,-785.97,0.00016712,2]
[390428963,1760043050136,-500.0,0.00016712,2]
[390428964,1760043050148,-542.98,0.00016712,2]
[390428965,1760043050158,-500.0,0.00016712,2]
[390428966,1760043050170,-809.33,0.00016712,2]
[390428967,1760043050181,-500.0,0.00016712,2]
[390428968,1760043050191,-500.0,0.00016712,2]
[390428969,1760043050202,-963.06,0.00016712,2]
[390428970,1760043050215,-151.21,0.00016712,2]
[390428971,1760043050225,-500.0,0.00016712,2]
[390428972,1760043050236,-500.0,0.00016712,2]
[390428973,1760043050248,-500.0,0.00016712,2]
[390428974,1760043050258,-2135.01,0.00016712,2]
[390428975,1760043050269,-5637.08,0.00016712,2]
[390428976,1760043050280,-500.0,0.00016712,2]
[390428977,1760043050290,-500.0,0.00016712,2]
[390428978,1760043050301,-500.0,0.00016712,2]
[390428979,1760043050312,-500.0,0.00016712,2]
[390428980,1760043050323,-500.0,0.00016712,2]
[390428981,1760043050334,-858.83,0.00016712,2]
[390428982,1760043050345,-500.0,0.00016712,2]
[390428983,1760043050355,-500.0,0.00016712,2]
[390428984,1760043050366,-1011.74,0.00016712,2]
[390428985,1760043050376,-500.0,0.00016712,2]
[390428986,1760043050386,-500.0,0.00016712,2]
[390428987,1760043050397,-500.0,0.00016712,2]
[390428988,1760043050408,-500.0,0.00016712,2]
[390428989,1760043050418,-1636.76,0.00016712,2]
[390428990,1760043050429,-500.0,0.00016712,2]
[390428991,1760043050439,-581.3,0.00016712,2]
[390428992,1760043050450,-500.0,0.00016712,2]
[390428993,1760043050460,-737.85,0.00016712,2]
[390428994,1760043050472,-500.0,0.00016712,2]
[390428995,1760043050488,-500.0,0.00016712,2]
[390428996,1760043050499,-500.0,0.00016712,2]
[390428997,1760043050510,-500.0,0.00016712,2]
[390428998,1760043050523,-500.0,0.00016712,2]
[390428999,1760043050533,-561.8,0.00016712,2]
[390429000,1760043050544,-500.0,0.00016712,2]
[390429001,1760043050557,-500.0,0.00016712,2]
[390429002,1760043050568,-1974.49,0.00016712,2]
[390429003,1760043050581,-500.0,0.00016712,2]
[390429004,1760043050592,-500.0,0.00016712,2]
[390429005,1760043050603,-3962.46,0.00016712,2]
[390429006,1760043050614,-500.0,0.00016712,2]
[390429007,1760043050625,-500.0,0.00016712,2]
[390429008,1760043050636,-500.0,0.00016712,2]
[390429009,1760043050647,-2339.63,0.00016712,2]
[390429010,1760043050658,-521.18,0.00016712,2]
[390429012,1760043050670,-151.0,0.00016783,2]
[390429014,1760043050681,-297.67166172,0.00016783,2]
[390429016,1760043050692,-500.0,0.00016783,2]
[390429018,1760043050703,-500.0,0.00016784,2]
[390429020,1760043050713,-500.0,0.00016784,2]
[390429023,1760043050724,-860.89733614,0.00016785,2]
[390429025,1760043050735,-659.06566591,0.00016785,2]
[390429027,1760043050747,-980.0,0.00016791,2]
[390429028,1760043050763,-630.0,0.00016791,2]
[390429029,1760043050774,-2159.0,0.00016791,2]
[390429030,1760043050786,-150.0,0.00016791,2]
[390429031,1760043050797,-4195.0,0.00016791,2]
[390429032,1760043050808,-198.0,0.00016822,2]
[390429033,1760043050819,-6690.83999939,0.00016846,2]
[390429034,1760043050830,-5000.0,0.00016846,2]
[390429035,1760043050841,-5000.0,0.00016846,2]
[390429036,1760043050852,-5000.0,0.00016846,2]
[390429037,1760043050863,-5000.0,0.00016846,2]
[390429038,1760043050874,-293.09701737,0.00016882,2]
[390429039,1760043050885,-151.0,0.00016882,2]
[390429040,1760043050895,-325.6234244,0.00016898,2]
[390429041,1760043050906,-443.0118812,0.00016898,2]
[390429042,1760043050916,-150.0,0.00016917,2]
[390429043,1760043050927,-150.0,0.00016917,2]
[390429044,1760043050937,-9495.48471075,0.00016921,2]
[390429045,1760043050947,-5000.0,0.00016921,2]
[390429046,1760043050958,-315.3799469,0.00016982,2]
[390429047,1760043050969,-153.1634104,0.00016982,2]
[390429048,1760043050981,-154.935667,0.00016982,2]
[390429049,1760043050993,-449.2799502,0.00016983,2]
[390429050,1760043051004,-500.0,0.00016986,2]
[390429051,1760043051015,-500.0,0.00016986,2]
[390429052,1760043051026,-209.1,0.00016986,2]
[390429053,1760043051037,-500.0,0.00016986,2]
[390429054,1760043051047,-500.0,0.00016986,2]
[390429055,1760043051058,-500.0,0.00016986,2]
[390429056,1760043051069,-507.98,0.00016986,2]
[390429057,1760043051080,-224.22,0.00016986,2]
[390429058,1760043051090,-500.0,0.00016986,2]
[390429059,1760043051101,-183.26,0.00016986,2]
[390429060,1760043051112,-500.0,0.00016986,2]
[390429061,1760043051123,-500.0,0.00016986,2]
[390429062,1760043051133,-237.18,0.00016986,2]
[390429063,1760043051144,-500.0,0.00016986,2]
[390429064,1760043051155,-500.0,0.00016986,2]
[390429065,1760043051166,-1640.13,0.00016986,2]
[390429066,1760043051177,-155.66,0.00016986,2]
[390429067,1760043051189,-252.34,0.00016986,2]
[390429068,1760043051199,-175.04,0.00016986,2]
[390429069,1760043051211,-500.0,0.00016986,2]
[390429070,1760043051221,-500.0,0.00016986,2]
[390429071,1760043051232,-487.09183983,0.00016986,2]
[390429072,1760043051244,-500.0,0.00016986,2]
[390429073,1760043051255,-500.0,0.00016986,2]
[390429074,1760043051267,-500.0,0.00016986,2]
[390429075,1760043051279,-406.28,0.00016986,2]
[390429076,1760043051290,-500.0,0.00016986,2]
[390429077,1760043051301,-500.0,0.00016986,2]
[390429078,1760043051312,-500.0,0.00016986,2]
[390429079,1760043051322,-500.0,0.00016986,2]
[390429080,1760043051333,-500.0,0.00016986,2]
[390429081,1760043051344,-500.0,0.00016986,2]
[390429082,1760043051355,-202.18,0.00016986,2]
[390429083,1760043051365,-1637.82,0.00016986,2]
[390429084,1760043051376,-459.14,0.00016986,2]
[390429085,1760043051387,-423.64,0.00016986,2]
[390429086,1760043051621,-223.58,0.00016986,2]
[390429087,1760043051639,-228.48,0.00016986,2]
[390429088,1760043051649,-500.0,0.00016986,2]
[390429089,1760043051659,-500.0,0.00016986,2]
[390429090,1760043051668,-199.98,0.00016986,2]
[390429091,1760043051678,-905.94,0.00016986,2]
[390429092,1760043051687,-742.67,0.00016986,2]
[390429093,1760043051696,-546.58,0.00016986,2]
[390429094,1760043051705,-500.0,0.00016986,2]
[390429095,1760043051714,-500.0,0.00016986,2]
[390429096,1760043051724,-330.65,0.00016986,2]
[390429097,1760043051733,-513.97,0.00016986,2]
[390429098,1760043051744,-689.91,0.00016986,2]
[390429099,1760043051755,-500.0,0.00016986,2]
[390429100,1760043051765,-500.0,0.00016986,2]
[390429101,1760043051775,-500.0,0.00016986,2]
[390429102,1760043051784,-500.0,0.00016986,2]
[390429103,1760043051794,-293.82,0.00016986,2]
[390429104,1760043051804,-500.0,0.00016986,2]
[390429105,1760043051813,-500.0,0.00016986,2]
[390429106,1760043051822,-297.3,0.00016986,2]
[390429107,1760043051832,-537.86,0.00016986,2]
[390429108,1760043051841,-500.0,0.00016986,2]
[390429109,1760043051850,-500.0,0.00016986,2]
[390429110,1760043051859,-500.0,0.00016986,2]
[390429111,1760043051868,-500.0,0.00016986,2]
[390429112,1760043051877,-817.32,0.00016986,2]
[390429113,1760043051886,-500.0,0.00016986,2]
[390429115,1760043051896,-500.0,0.00016986,2]
[390429117,1760043051905,-2250.3,0.00016986,2]
[390429119,1760043051914,-500.0,0.00016986,2]
[390429120,1760043051923,-500.0,0.00016986,2]
[390429122,1760043051932,-500.0,0.00016986,2]
[390429124,1760043051941,-500.0,0.00016986,2]
[390429126,1760043051949,-500.0,0.00016986,2]
[390429128,1760043051958,-500.0,0.00016986,2]
[390429130,1760043051967,-351.77,0.00016986,2]
[390429132,1760043051976,-500.0,0.00016986,2]
[390429134,1760043051985,-500.0,0.00016986,2]
[390429136,1760043051993,-500.0,0.00016986,2]
[390429138,1760043052002,-2059.56,0.00016986,2]
[390429140,1760043052011,-574.12,0.00016986,2]
[390429142,1760043052020,-500.0,0.00016986,2]
[390429144,1760043052029,-500.0,0.00016986,2]
[390429146,1760043052038,-246.94,0.00016986,2]
[390429148,1760043052047,-776.37,0.00016986,2]
[390429149,1760043052056,-500.0,0.00016986,2]
[390429151,1760043052066,-500.0,0.00016986,2]
[390429153,1760043052075,-490.35,0.00016986,2]
[390429155,1760043052084,-2184.17,0.00016986,2]
[390429157,1760043052093,-554.61,0.00016986,2]
[390429159,1760043052103,-500.0,0.00016986,2]
[390429161,1760043052112,-500.0,0.00016986,2]
[390429163,1760043052122,-500.0,0.00016986,2]
[390429165,1760043052131,-500.0,0.00016986,2]
[390429167,1760043052140,-167.9,0.00016986,2]
[390429169,1760043052149,-500.0,0.00016986,2]
[390429171,1760043052158,-664.28,0.00016986,2]
[390429173,1760043052167,-368.71,0.00016986,2]
[390429175,1760043052177,-500.0,0.00016986,2]
[390429177,1760043052186,-535.47,0.00016986,2]
[390429179,1760043052196,-500.0,0.00016986,2]
[390429181,1760043052206,-635.28,0.00016986,2]
[390429183,1760043052215,-500.0,0.00016986,2]
[390429185,1760043052224,-500.0,0.00016986,2]
[390429187,1760043052233,-874.17,0.00016986,2]
[390429189,1760043052243,-546.5,0.00016986,2]
[390429191,1760043052252,-636.25,0.00016986,2]
[390429193,1760043052261,-628.04,0.00016986,2]
[390429195,1760043052270,-500.0,0.00016986,2]
[390429197,1760043052280,-820.19,0.00016986,2]
[390429199,1760043052289,-815.62,0.00016986,2]
[390429201,1760043052298,-3835.67,0.00016986,2]
[390429203,1760043052307,-895.85,0.00016986,2]
[390429204,1760043052316,-250.98830554,0.00016986,2]
[390429206,1760043052324,-361.94,0.00016986,2]
[390429208,1760043052333,-352.69,0.00016986,2]
[390429210,1760043052342,-2139.37,0.00016986,2]
[390429212,1760043052352,-500.0,0.00016986,2]
[390429214,1760043052360,-205.12,0.00016986,2]
[390429216,1760043052370,-500.0,0.00016986,2]
[390429218,1760043052380,-6275.11,0.00016986,2]
[390429220,1760043052389,-500.0,0.00016986,2]
[390429222,1760043052398,-2748.55,0.00016986,2]
[390429224,1760043052407,-487.0,0.00016986,2]
[390429226,1760043052416,-6651.32,0.00016986,2]
[390429228,1760043052425,-651.95,0.00016986,2]
[390429230,1760043052433,-2566.51,0.00016986,2]
[390429232,1760043052442,-500.0,0.00016986,2]
[390429234,1760043052452,-500.0,0.00016986,2]
[390429236,1760043052460,-500.0,0.00016986,2]
[390429238,1760043052470,-581.96,0.00016986,2]
[390429240,1760043052483,-500.0,0.00016986,2]
[390429242,1760043052492,-500.0,0.00016986,2]
[390429244,1760043052501,-161.82,0.00016986,2]
[390429246,1760043052510,-500.0,0.00016986,2]
[390429247,1760043052520,-500.0,0.00016986,2]
[390429249,1760043052529,-500.0,0.00016986,2]
[390429251,1760043052538,-668.46,0.00016986,2]
[390429253,1760043052547,-605.34,0.00016986,2]
[390429255,1760043052561,-500.0,0.00016986,2]
[390429257,1760043052570,-1181.46,0.00016986,2]
[390429259,1760043052580,-642.36,0.00016986,2]
[390429261,1760043052589,-500.0,0.00016986,2]
[390429263,1760043052598,-500.0,0.00016986,2]
[390429265,1760043052607,-500.0,0.00016986,2]
[390429267,1760043052617,-500.0,0.00016986,2]
[390429269,1760043052625,-872.08,0.00016986,2]
[390429271,1760043052635,-5078.82,0.00016986,2]
[390429273,1760043052644,-500.0,0.00016986,2]
[390429275,1760043052653,-738.96,0.00016986,2]
[390429277,1760043052662,-500.0,0.00016986,2]
[390429279,1760043052671,-3237.99,0.00016986,2]
[390429281,1760043052680,-528.77,0.00016986,2]
[390429283,1760043052689,-1164.62,0.00016986,2]
[390429285,1760043052698,-500.0,0.00016986,2]
[390429287,1760043052708,-500.0,0.00016986,2]
[390429289,1760043052717,-500.0,0.00016986,2]
[390429291,1760043052727,-500.0,0.00016986,2]
[390429293,1760043052736,-1219.76,0.00016986,2]
[390429295,1760043052746,-500.0,0.00016986,2]
[390429297,1760043052757,-1054.51,0.00016986,2]
[390429299,1760043052766,-500.0,0.00016986,2]
[390429301,1760043052775,-500.0,0.00016986,2]
[390429303,1760043052784,-667.31,0.00016986,2]
[390429305,1760043052793,-500.0,0.00016986,2]
[390429307,1760043052802,-600.34,0.00016986,2]
[390429309,1760043052811,-239.2,0.00016986,2]
[390429311,1760043052819,-500.0,0.00016986,2]
[390429313,1760043052829,-780.03,0.00016986,2]
[390429315,1760043052838,-830.88,0.00016986,2]
[390429317,1760043052847,-500.0,0.00016986,2]
[390429319,1760043052856,-829.78,0.00016986,2]
[390429321,1760043052866,-500.0,0.00016986,2]
[390429323,1760043052875,-785.97,0.00016986,2]
[390429325,1760043052884,-542.98,0.00016986,2]
[390429327,1760043052893,-809.33,0.00016986,2]
[390429329,1760043052902,-500.0,0.00016986,2]
[390429331,1760043052911,-500.0,0.00016986,2]
[390429333,1760043052920,-963.06,0.00016986,2]
[390429335,1760043052929,-500.0,0.00016986,2]
[390429337,1760043052938,-2135.01,0.00016986,2]
[390429339,1760043052947,-5637.08,0.00016986,2]
[390429340,1760043052956,-500.0,0.00016986,2]
[390429341,1760043052964,-500.0,0.00016986,2]
[390429342,1760043052973,-500.0,0.00016986,2]
[390429343,1760043052982,-254.52,0.00016986,2]
[390429344,1760043052991,-858.83,0.00016986,2]
[390429345,1760043053000,-500.0,0.00016986,2]
[390429346,1760043053009,-1011.74,0.00016986,2]
[390429347,1760043053018,-500.0,0.00016986,2]
[390429348,1760043053027,-500.0,0.00016986,2]
[390429349,1760043053036,-500.0,0.00016986,2]
[390429350,1760043053045,-500.0,0.00016986,2]
[390429351,1760043053054,-1636.76,0.00016986,2]
[390429352,1760043053063,-581.3,0.00016986,2]
[390429353,1760043053072,-737.85,0.00016986,2]
[390429354,1760043053081,-500.0,0.00016986,2]
[390429355,1760043053090,-500.0,0.00016986,2]
[390429356,1760043053099,-500.0,0.00016986,2]
[390429357,1760043053108,-500.0,0.00016986,2]
[390429358,1760043053117,-500.0,0.00016986,2]
[390429359,1760043053126,-500.0,0.00016986,2]
[390429360,1760043053136,-1974.49,0.00016986,2]
[390429362,1760043053145,-500.0,0.00016986,2]
[390429363,1760043053154,-602.72,0.00016986,2]
[390429365,1760043053163,-3962.46,0.00016986,2]
[390429367,1760043053173,-500.0,0.00016986,2]
[390429368,1760043053182,-500.0,0.00016986,2]
[390429371,1760043053192,-2339.63,0.00016986,2]
[390429373,1760043053201,-151.0,0.00017,2]
[390429375,1760043053211,-4276.39070458,0.00017,2]
[390429377,1760043053221,-151.0,0.00017,2]
[390429379,1760043053230,-1000.0,0.00017021,2]
[390429381,1760043053239,-1000.0,0.00017021,2]
[390429383,1760043053249,-1000.0,0.00017021,2]
[390429385,1760043053259,-1000.90537525,0.00017021,2]
[390429387,1760043053269,-505.21896128,0.00017021,2]
[390429389,1760043053279,-500.44455472,0.00017021,2]
[390429391,1760043053290,-1000.0,0.00017021,2]
[390429393,1760043053299,-1000.0,0.00017021,2]
[390429395,1760043053308,-500.0,0.00017021,2]
[390429397,1760043053318,-1000.0,0.00017021,2]
[390429399,1760043053327,-501.21452871,0.00017021,2]
[390429401,1760043053337,-500.0,0.00017021,2]
[390429403,1760043053346,-502.60079924,0.00017021,2]
[390429405,1760043053355,-1000.0,0.00017021,2]
[390429407,1760043053364,-1001.03087857,0.00017021,2]
[390429409,1760043053373,-1000.0,0.00017021,2]
[390429411,1760043053383,-1000.0,0.00017021,2]
[390429413,1760043053392,-1126.82541977,0.00017021,2]
[390429415,1760043053400,-1000.0,0.00017021,2]
[390429417,1760043053410,-1000.0,0.00017021,2]
[390429419,1760043053419,-1000.0,0.00017021,2]
[390429421,1760043053427,-1000.0,0.00017021,2]
[390429423,1760043053438,-1000.0,0.00017021,2]
[390429425,1760043053447,-1000.0,0.00017021,2]
[390429427,1760043053456,-453.40714898,0.00017021,2]
[390429429,1760043053465,-500.67643969,0.00017021,2]
[390429431,1760043053475,-1000.0,0.00017021,2]
[390429433,1760043053487,-1000.0,0.00017021,2]
[390429435,1760043053497,-1000.0,0.00017021,2]
[390429437,1760043053506,-1000.0,0.00017021,2]
[390429439,1760043053515,-1000.0,0.00017021,2]
[390429441,1760043053526,-1000.0,0.00017021,2]
[390429444,1760043053535,-1000.0,0.00017021,2]
[390429445,1760043053545,-1006.51789788,0.00017021,2]
[390429447,1760043053556,-500.0,0.00017021,2]
[390429449,1760043053565,-1000.0,0.00017021,2]
[390429451,1760043053574,-1000.0,0.00017021,2]
[390429453,1760043053583,-1000.0,0.00017021,2]
[390429455,1760043053593,-1000.0,0.00017021,2]
[390429458,1760043053602,-1000.0,0.00017021,2]
[390429459,1760043053611,-1000.0,0.00017021,2]
[390429461,1760043053620,-1000.0,0.00017021,2]
[390429463,1760043053630,-1000.0,0.00017021,2]
[390429465,1760043053639,-245.0,0.00017057,2]
[390429467,1760043053649,-251.21086037,0.00017057,2]
[390429469,1760043053658,-500.0,0.00017058,2]
[390429472,1760043053667,-500.0,0.00017058,2]
[390429474,1760043053676,-151.0,0.000171,2]
[390429475,1760043053685,-420.0,0.00017152,2]
[390429477,1760043053694,-245.0,0.00017156,2]
[390429479,1760043053703,-1135.0,0.00017185,2]
[390429481,1760043053713,-1680.0,0.00017238,2]
[390429484,1760043053722,-500.0,0.0001726,2]
[390429485,1760043053731,-200.32,0.0001726,2]
[390429487,1760043053740,-446.1,0.0001726,2]
[390429489,1760043053750,-570.5,0.0001726,2]
[390429492,1760043053759,-500.0,0.0001726,2]
[390429493,1760043053769,-500.0,0.0001726,2]
[390429496,1760043053778,-353.66,0.0001726,2]
[390429498,1760043053788,-497.04,0.0001726,2]
[390429500,1760043053797,-500.0,0.0001726,2]
[390429502,1760043053807,-500.0,0.0001726,2]
[390429504,1760043053816,-1640.13,0.0001726,2]
[390429506,1760043053825,-500.0,0.0001726,2]
[390429508,1760043053834,-604.0,0.0001726,2]
[390429510,1760043053843,-472.56,0.0001726,2]
[390429512,1760043053852,-525.75,0.0001726,2]
[390429514,1760043053864,-508.18,0.0001726,2]
[390429516,1760043053873,-500.0,0.0001726,2]
[390429518,1760043053883,-500.0,0.0001726,2]
[390429520,1760043053892,-500.0,0.0001726,2]
[390429522,1760043053902,-254.66,0.0001726,2]
[390429524,1760043053911,-1637.82,0.0001726,2]
[390429526,1760043053920,-500.0,0.0001726,2]
[390429528,1760043053929,-500.0,0.0001726,2]
[390429530,1760043053939,-905.94,0.0001726,2]
[390429532,1760043053949,-742.67,0.0001726,2]
[390429534,1760043053958,-264.45,0.0001726,2]
[390429536,1760043053968,-500.0,0.0001726,2]
[390429538,1760043053977,-689.91,0.0001726,2]
[390429540,1760043053987,-500.0,0.0001726,2]
[390429542,1760043053997,-500.0,0.0001726,2]
[390429544,1760043054006,-500.0,0.0001726,2]
[390429546,1760043054016,-549.6,0.0001726,2]
[390429548,1760043054026,-361.76,0.0001726,2]
[390429550,1760043054035,-537.86,0.0001726,2]
[390429552,1760043054045,-365.30899625,0.0001726,2]
[390429554,1760043054054,-151.8,0.0001726,2]
[390429556,1760043054064,-817.32,0.0001726,2]
[390429558,1760043054073,-295.28,0.0001726,2]
[390429560,1760043054082,-500.0,0.0001726,2]
[390429562,1760043054091,-2250.3,0.0001726,2]
[390429564,1760043054100,-500.0,0.0001726,2]
[390429566,1760043054110,-627.48,0.0001726,2]
[390429568,1760043054119,-302.26,0.0001726,2]
[390429570,1760043054129,-500.0,0.0001726,2]
[390429572,1760043054138,-267.08,0.0001726,2]
[390429574,1760043054148,-500.0,0.0001726,2]
[390429576,1760043054157,-500.0,0.0001726,2]
[390429578,1760043054167,-276.72,0.0001726,2]
[390429582,1760043054189,-2059.56,0.0001726,2]
[390429584,1760043054198,-500.0,0.0001726,2]
[390429586,1760043054207,-612.24,0.0001726,2]
[390429588,1760043054216,-776.37,0.0001726,2]
[390429590,1760043054226,-500.0,0.0001726,2]
[390429592,1760043054235,-2184.17,0.0001726,2]
[390429594,1760043054245,-500.0,0.0001726,2]
[390429596,1760043054255,-500.0,0.0001726,2]
[390429598,1760043054264,-354.64,0.0001726,2]
[390429600,1760043054274,-500.0,0.0001726,2]
[390429602,1760043054283,-664.28,0.0001726,2]
[390429604,1760043054292,-500.0,0.0001726,2]
[390429606,1760043054302,-500.0,0.0001726,2]
[390429608,1760043054311,-635.28,0.0001726,2]
[390429610,1760043054320,-500.0,0.0001726,2]
[390429612,1760043054330,-500.0,0.0001726,2]
[390429614,1760043054339,-874.17,0.0001726,2]
[390429616,1760043054347,-546.5,0.0001726,2]
[390429618,1760043054356,-636.25,0.0001726,2]
[390429620,1760043054366,-628.04,0.0001726,2]
[390429622,1760043054375,-500.0,0.0001726,2]
[390429624,1760043054384,-820.19,0.0001726,2]
[390429626,1760043054394,-815.62,0.0001726,2]
[390429628,1760043054404,-3835.67,0.0001726,2]
[390429630,1760043054414,-895.85,0.0001726,2]
[390429632,1760043054423,-2139.37,0.0001726,2]
[390429634,1760043054432,-500.0,0.0001726,2]
[390429636,1760043054442,-500.0,0.0001726,2]
[390429638,1760043054451,-6275.11,0.0001726,2]
[390429640,1760043054460,-500.0,0.0001726,2]
[390429642,1760043054469,-2748.55,0.0001726,2]
[390429644,1760043054482,-6651.32,0.0001726,2]
[390429646,1760043054491,-651.95,0.0001726,2]
[390429648,1760043054500,-2566.51,0.0001726,2]
[390429650,1760043054509,-500.0,0.0001726,2]
[390429652,1760043054519,-217.36,0.0001726,2]
[390429654,1760043054528,-581.96,0.0001726,2]
[390429656,1760043054537,-500.0,0.0001726,2]